fUSD/lending_fUSD_20240212
["ID","MTS","AMOUNT","RATE_DAILY","PERIOD"]
[313818733,1707735109719,-500.0,0.00025693,2]
[313818734,1707735109729,-500.0,0.00025693,2]
[313818735,1707735109739,-500.0,0.00025693,2]
[313818736,1707735109749,-677.22,0.00025693,2]
[313818737,1707735109758,-544.02,0.00025693,2]
[313818738,1707735109767,-500.0,0.00025693,2]
[313818739,1707735109776,-500.0,0.00025693,2]
[313818740,1707735109785,-500.0,0.00025693,2]
[313818741,1707735109795,-559.07,0.00025693,2]
[313818742,1707735109804,-543.92,0.00025693,2]
[313818743,1707735109813,-570.54,0.00025693,2]
[313818744,1707735109823,-536.03,0.00025693,2]
[313818745,1707735109832,-500.0,0.00025693,2]
[313818746,1707735109841,-500.0,0.00025693,2]
[313818747,1707735109851,-533.07,0.00025693,2]
[313818748,1707735109860,-574.77,0.00025693,2]
[313818749,1707735109869,-871.23,0.00025693,2]
[313818750,1707735109878,-643.11,0.00025693,2]
[313818751,1707735109887,-952.45,0.00025693,2]
[313818752,1707735109897,-500.0,0.00025693,2]
[313818753,1707735109906,-706.8,0.00025693,2]
[313818754,1707735109914,-972.12,0.00025693,2]
[313818755,1707735109924,-740.12,0.00025693,2]
[313818756,1707735109933,-768.67,0.00025693,2]
[313818757,1707735109943,-507.83,0.00025693,2]
[313818758,1707735109952,-653.17,0.00025693,2]
[313818759,1707735109961,-882.98,0.00025693,2]
[313818760,1707735109971,-515.82,0.00025693,2]
[313818761,1707735109981,-500.0,0.00025693,2]
[313818762,1707735109991,-500.0,0.00025693,2]
[313818763,1707735110000,-500.0,0.00025693,2]
[313818764,1707735110010,-150.0,0.00025693,2]
[313818765,1707735110020,-4432.79,0.00025693,2]
[313818766,1707735110029,-2834.27,0.00025693,2]
[313818768,1707735110038,-254.04,0.00025693,2]
[313818769,1707735110049,-500.0,0.00025693,2]
[313818770,1707735110058,-519.45,0.00025693,2]
[313818771,1707735110068,-500.0,0.00025693,2]
[313818772,1707735110077,-330.4,0.00025693,2]
[313818773,1707735110088,-361.04571,0.00025693,2]
[313818774,1707735110097,-5024.21,0.00025693,2]
[313818775,1707735110107,-343.74654455,0.00025693,2]
[313818776,1707735110116,-4933.54,0.00025693,2]
[313818777,1707735110126,-555.59,0.00025693,2]
[313818778,1707735110136,-2897.97,0.00025693,2]
[313818779,1707735110148,-5066.73879493,0.00025693,2]
[313818780,1707735110163,-500.0,0.00025693,2]
[313818781,1707735110175,-635.24120507,0.00025693,2]
[313818782,1707735110186,-2371.51,0.00025693,2]
[313818783,1707735110195,-3045.48,0.00025693,2]
[313818784,1707735110205,-500.0,0.00025693,2]
[313818785,1707735110215,-1547.39,0.00025693,2]
[313818786,1707735110225,-846.31,0.00025693,2]
[313818787,1707735110235,-4097.96,0.00025693,2]
[313818788,1707735110245,-1248.24620579,0.00025693,2]
[313818789,1707735110285,-500.0,0.00022405,2]
[313818790,1707735110295,-7152.62379421,0.00025693,2]
[313818791,1707735110305,-500.0,0.00025693,2]
[313818792,1707735110315,-973.53,0.00025693,2]
[313818793,1707735110325,-504.62,0.00025693,2]
[313818794,1707735110335,-2007.99,0.00025693,2]
[313818795,1707735110345,-1445.04,0.00025693,2]
[313818796,1707735110354,-2108.56,0.00025693,2]
[313818797,1707735110364,-778.83,0.00025693,2]
[313818798,1707735110373,-192.36,0.00025693,2]
[313818799,1707735110382,-500.0,0.00025693,2]
[313818800,1707735110394,-751.46,0.00025693,2]
[313818801,1707735110404,-678.75,0.00025693,2]
[313818802,1707735110414,-552.16,0.00025693,2]
[313818803,1707735110424,-2405.45,0.00025693,2]
[313818804,1707735110435,-500.0,0.00025693,2]
[313818805,1707735110445,-4101.5,0.00025693,2]
[313818806,1707735110457,-500.0,0.00025693,2]
[313818807,1707735110468,-20031.68,0.00025693,2]
[313818808,1707735110479,-500.0,0.00025693,2]
[313818809,1707735110489,-2234.98333556,0.00025693,2]
[313818810,1707735110503,-373.45767937,0.00025693,2]
[313818811,1707735110519,-3373.68898507,0.00025693,2]
[313818812,1707735110529,-2670.94,0.00025693,2]
[313818813,1707735110540,-2470.01,0.00025693,2]
[313818814,1707735110549,-1147.39,0.00025693,2]
[313818815,1707735110559,-500.0,0.00025693,2]
[313818816,1707735110570,-500.0,0.00025693,2]
[313818817,1707735110580,-512.26,0.00025693,2]
[313818818,1707735110591,-689.37,0.00025693,2]
[313818819,1707735110601,-528.76,0.00025693,2]
[313818820,1707735110610,-710.54,0.00025693,2]
[313818821,1707735110620,-500.0,0.00025693,2]
[313818822,1707735110632,-7132.65,0.00025693,2]
[313818823,1707735110643,-1207.55,0.00025693,2]
[313818824,1707735110653,-1690.53,0.00025693,2]
[313818825,1707735110663,-767.62,0.00025693,2]
[313818826,1707735110673,-768.44,0.00025693,2]
[313818827,1707735110682,-2328.9,0.00025693,2]
[313818828,1707735110692,-6830.87,0.00025693,2]
[313818829,1707735110701,-581.45,0.00025693,2]
[313818830,1707735110711,-550.33,0.00025693,2]
[313818831,1707735110721,-346.08460265,0.00025693,2]
[313818832,1707735110731,-2234.17,0.00025693,2]
[313818833,1707735110741,-1353.61,0.00025693,2]
[313818834,1707735110750,-589.69,0.00025693,2]
[313818835,1707735110759,-1145.24,0.00025693,2]
[313818836,1707735110768,-1751.56,0.00025693,2]
[313818837,1707735110778,-996.07,0.00025693,2]
[313818838,1707735110787,-727.06,0.00025693,2]
[313818839,1707735110796,-500.0,0.00025693,2]
[313818840,1707735110806,-1151.45,0.00025693,2]
[313818841,1707735110815,-500.0,0.00025693,2]
[313818842,1707735110825,-1447.65,0.00025693,2]
[313818843,1707735110835,-500.0,0.00025693,2]
[313818844,1707735110844,-2805.58,0.00025693,2]
[313818845,1707735110853,-1232.65,0.00025693,2]
[313818846,1707735110864,-500.0,0.00025693,2]
[313818847,1707735110872,-500.0,0.00025693,2]
[313818848,1707735110881,-500.0,0.00025693,2]
[313818849,1707735110890,-843.89,0.00025693,2]
[313818850,1707735110899,-1190.91,0.00025693,2]
[313818851,1707735110909,-500.0,0.00025693,2]
[313818852,1707735110918,-899.12,0.00025693,2]
[313818853,1707735110928,-9748.41,0.00025693,2]
[313818854,1707735110936,-2215.09,0.00025693,2]
[313818855,1707735110946,-620.29,0.00025693,2]
[313818856,1707735110955,-500.0,0.00025693,2]
[313818857,1707735110964,-600.94,0.00025693,2]
[313818858,1707735110975,-879.84,0.00025693,2]
[313818859,1707735110985,-150.0,0.00025693,2]
[313818860,1707735110994,-150.0,0.00025693,2]
[313818861,1707735111003,-572.36,0.00025693,2]
[313818862,1707735111013,-500.0,0.00025693,2]
[313818863,1707735111022,-557.25517189,0.00025693,2]
[313818864,1707735111220,-2783.52,0.00025693,2]
[313818865,1707735111230,-690.15,0.00025693,2]
[313818866,1707735111240,-910.37,0.00025693,2]
[313818867,1707735111249,-960.48,0.00025693,2]
[313818868,1707735111259,-588.11,0.00025693,2]
[313818869,1707735111268,-193.45474039,0.00025693,2]
[313818870,1707735111281,-574.43525961,0.00025693,2]
[313818871,1707735111291,-500.0,0.00025693,2]
[313818872,1707735111301,-500.0,0.00025693,2]
[313818873,1707735111311,-788.8,0.00025693,2]
[313818874,1707735111321,-2092.79,0.00025693,2]
[313818875,1707735111330,-921.9,0.00025693,2]
[313818876,1707735111340,-2812.9,0.00025693,2]
[313818877,1707735111350,-8672.72,0.00025693,2]
[313818878,1707735111360,-1654.9,0.00025693,2]
[313818879,1707735111369,-500.0,0.00025694,2]
[313818880,1707735111378,-500.0,0.00025694,2]
[313818881,1707735111388,-500.0,0.00025694,2]
[313818882,1707735111398,-500.0,0.00025694,2]
[313818883,1707735111408,-500.0,0.00025694,2]
[313818884,1707735111417,-500.0,0.00025694,2]
[313818885,1707735111427,-500.0,0.00025694,2]
[313818886,1707735111437,-305.64907224,0.00025694,2]
[313818887,1707735111446,-564.35,0.00025694,2]
[313818888,1707735111458,-939.38,0.00025694,2]
[313818889,1707735111468,-500.0,0.00025694,2]
[313818890,1707735111478,-500.0,0.00025694,2]
[313818891,1707735111487,-500.0,0.00025694,2]
[313818892,1707735111497,-615.97,0.00025694,2]
[313818893,1707735111507,-808.34,0.00025694,2]
[313818894,1707735111517,-500.0,0.00025694,2]
[313818895,1707735111527,-596.55,0.00025694,2]
[313818896,1707735111536,-500.0,0.00025694,2]
[313818897,1707735111546,-500.0,0.00025694,2]
[313818898,1707735111556,-578.22,0.00025694,2]
[313818899,1707735111566,-500.0,0.00025694,2]
[313818900,1707735111575,-500.0,0.00025694,2]
[313818901,1707735111585,-509.14,0.00025694,2]
[313818902,1707735111594,-783.3,0.00025694,2]
[313818903,1707735111603,-707.32,0.00025694,2]
[313818904,1707735111612,-500.0,0.00025694,2]
[313818905,1707735111622,-492.4060657,0.00025694,2]
[313818906,1707735111631,-500.0,0.00025694,2]
[313818907,1707735111641,-618.89,0.00025694,2]
[313818908,1707735111650,-500.0,0.00025694,2]
[313818909,1707735111659,-500.0,0.00025694,2]
[313818910,1707735111668,-500.0,0.00025694,2]
[313818911,1707735111677,-500.0,0.00025694,2]
[313818912,1707735111687,-2711.38,0.00025694,2]
[313818913,1707735111697,-500.0,0.00025694,2]
[313818914,1707735111706,-1469.44,0.00025694,2]
[313818915,1707735111715,-681.86,0.00025694,2]
[313818916,1707735111725,-500.0,0.00025694,2]
[313818917,1707735111734,-537.01,0.00025694,2]
[313818918,1707735111744,-2252.02,0.00025694,2]
[313818919,1707735111753,-688.56,0.00025694,2]
[313818920,1707735111762,-500.0,0.00025694,2]
[313818921,1707735111771,-500.0,0.00025694,2]
[313818922,1707735111780,-500.0,0.00025694,2]
[313818923,1707735111789,-1838.36,0.00025694,2]
[313818924,1707735111798,-500.0,0.00025694,2]
[313818925,1707735111807,-500.0,0.00025694,2]
[313818926,1707735111816,-500.0,0.00025694,2]
[313818927,1707735111826,-500.0,0.00025694,2]
[313818928,1707735111835,-500.98682482,0.00025694,2]
[313818929,1707735111845,-653.74,0.00025694,2]
[313818930,1707735111854,-500.0,0.00025694,2]
[313818931,1707735111864,-500.0,0.00025694,2]
[313818932,1707735111874,-500.0,0.00025694,2]
[313818933,1707735111883,-4603.61,0.00025694,2]
[313818934,1707735111892,-500.0,0.00025694,2]
[313818935,1707735111901,-939.6,0.00025694,2]
[313818936,1707735111910,-911.93,0.00025694,2]
[313818937,1707735111920,-500.0,0.00025694,2]
[313818938,1707735111929,-793.68,0.00025694,2]
[313818939,1707735111938,-659.79,0.00025694,2]
[313818940,1707735111947,-1543.06,0.00025694,2]
[313818941,1707735111956,-500.0,0.00025694,2]
[313818942,1707735111965,-2800.78,0.00025694,2]
[313818943,1707735111975,-500.0,0.00025694,2]
[313818944,1707735111985,-380.3788284,0.00025694,2]
[313818945,1707735111995,-607.76,0.00025694,2]
[313818946,1707735112004,-703.75,0.00025694,2]
[313818947,1707735112013,-612.44,0.00025694,2]
[313818948,1707735112022,-500.0,0.00025694,2]
[313818949,1707735112031,-540.31,0.00025694,2]
[313818950,1707735112040,-597.88,0.00025694,2]
[313818951,1707735112050,-500.0,0.00025694,2]
[313818952,1707735112058,-703.76,0.00025694,2]
[313818953,1707735112067,-500.0,0.00025694,2]
[313818954,1707735112076,-605.58,0.00025694,2]
[313818955,1707735112085,-990.95,0.00025694,2]
[313818956,1707735112094,-556.38,0.00025694,2]
[313818957,1707735112103,-713.73,0.00025694,2]
[313818958,1707735112112,-157.14,0.00025694,2]
[313818959,1707735112121,-500.0,0.00025694,2]
[313818960,1707735112130,-500.0,0.00025694,2]
[313818961,1707735112139,-762.09,0.00025694,2]
[313818962,1707735112148,-500.0,0.00025694,2]
[313818963,1707735112157,-1678.01,0.00025694,2]
[313818964,1707735112167,-731.06,0.00025694,2]
[313818965,1707735112176,-612.73,0.00025694,2]
[313818966,1707735112186,-2458.08,0.00025694,2]
[313818967,1707735112195,-290.52,0.00025695,2]
[313818968,1707735112205,-500.0,0.00025695,2]
[313818969,1707735112214,-6304.42376575,0.00025965,2]
[313818970,1707735112223,-500.0,0.00025966,2]
[313818971,1707735112233,-579.33,0.00025966,2]
[313818972,1707735112242,-2304.48,0.00025966,2]
[313818973,1707735112251,-500.0,0.00025966,2]
[313818974,1707735112260,-6366.64,0.00025966,2]
[313818975,1707735112269,-2086.18,0.00025966,2]
[313818976,1707735112278,-862.58,0.00025966,2]
[313818977,1707735112287,-1948.16,0.00025966,2]
[313818978,1707735112297,-673.35,0.00025966,2]
[313818979,1707735112305,-500.0,0.00025966,2]
[313818980,1707735112315,-526.84,0.00025966,2]
[313818981,1707735112324,-1740.03,0.00025966,2]
[313818982,1707735112333,-973.64,0.00025966,2]
[313818983,1707735112343,-6745.22,0.00025966,2]
[313818984,1707735112352,-509.25,0.00025966,2]
[313818985,1707735112361,-500.0,0.00025966,2]
[313818986,1707735112371,-500.0,0.00025966,2]
[313818987,1707735112380,-505.12,0.00025966,2]
[313818988,1707735112388,-500.0,0.00025966,2]
[313818989,1707735112397,-1092.67,0.00025966,2]
[313818990,1707735112406,-2684.85,0.00025966,2]
[313818991,1707735112416,-500.0,0.00025966,2]
[313818992,1707735112425,-529.57,0.00025966,2]
[313818993,1707735112434,-602.36,0.00025966,2]
[313818994,1707735112443,-864.29,0.00025966,2]
[313818995,1707735112453,-500.0,0.00025966,2]
[313818996,1707735112466,-500.0,0.00025966,2]
[313818997,1707735112475,-2142.06,0.00025966,2]
[313818998,1707735112485,-500.0,0.00025966,2]
[313818999,1707735112495,-243.89279513,0.00025967,2]
[313819000,1707735112504,-548.4,0.00025967,2]
[313819001,1707735112513,-500.0,0.00025967,2]
[313819002,1707735112523,-500.0,0.00025967,2]
[313819003,1707735112532,-438.73311683,0.00025967,2]
[313819004,1707735112541,-677.22,0.00025967,2]
[313819005,1707735112550,-544.02,0.00025967,2]
[313819006,1707735112559,-500.0,0.00025967,2]
[313819007,1707735112567,-359.82473814,0.00025967,2]
[313819008,1707735112577,-423.04840655,0.00025967,2]
[313819009,1707735112586,-559.07,0.00025967,2]
[313819010,1707735112595,-543.92,0.00025967,2]
[313819011,1707735112604,-570.54,0.00025967,2]
[313819012,1707735112613,-536.03,0.00025967,2]
[313819013,1707735112622,-420.18220758,0.00025967,2]
[313819014,1707735112631,-500.0,0.00025967,2]
[313819015,1707735112640,-533.07,0.00025967,2]
[313819016,1707735112649,-574.77,0.00025967,2]
[313819017,1707735112658,-871.23,0.00025967,2]
[313819018,1707735112667,-643.11,0.00025967,2]
[313819019,1707735112677,-952.45,0.00025967,2]
[313819020,1707735112687,-500.0,0.00025967,2]
[313819021,1707735112695,-706.8,0.00025967,2]
[313819022,1707735112705,-972.12,0.00025967,2]
[313819023,1707735112714,-740.12,0.00025967,2]
[313819024,1707735112724,-768.67,0.00025967,2]
[313819025,1707735112733,-507.83,0.00025967,2]
[313819026,1707735112743,-653.17,0.00025967,2]
[313819027,1707735112752,-882.98,0.00025967,2]
[313819028,1707735112761,-515.82,0.00025967,2]
[313819029,1707735112771,-500.0,0.00025967,2]
[313819030,1707735112781,-500.0,0.00025967,2]
[313819031,1707735112791,-150.0,0.00025967,2]
[313819032,1707735112800,-4432.79,0.00025967,2]
[313819033,1707735112809,-2834.27,0.00025967,2]
[313819034,1707735112818,-500.0,0.00025967,2]
[313819035,1707735112827,-519.45,0.00025967,2]
[313819036,1707735112836,-500.0,0.00025967,2]
[313819037,1707735112846,-5024.21,0.00025967,2]
[313819038,1707735112855,-4933.54,0.00025967,2]
[313819039,1707735112865,-555.59,0.00025967,2]
[313819040,1707735112874,-2897.97,0.00025967,2]
[313819041,1707735112884,-6201.98,0.00025967,2]
[313819042,1707735112893,-500.0,0.00025967,2]
[313819043,1707735112902,-2371.51,0.00025967,2]
[313819044,1707735112912,-3045.48,0.00025967,2]
[313819045,1707735112921,-500.0,0.00025967,2]
[313819046,1707735112930,-1547.39,0.00025967,2]
[313819047,1707735112939,-846.31,0.00025967,2]
[313819048,1707735112949,-4097.96,0.00025967,2]
[313819049,1707735112958,-8400.87,0.00025967,2]
[313819050,1707735112968,-500.0,0.00025967,2]
[313819051,1707735112977,-973.53,0.00025967,2]
[313819052,1707735112986,-504.62,0.00025967,2]
[313819053,1707735112996,-2007.99,0.00025967,2]
[313819054,1707735113006,-1445.04,0.00025967,2]
[313819055,1707735113015,-2108.56,0.00025967,2]
[313819056,1707735113024,-778.83,0.00025967,2]
[313819057,1707735113034,-500.0,0.00025967,2]
[313819058,1707735113045,-751.46,0.00025967,2]
[313819059,1707735113056,-552.16,0.00025967,2]
[313819060,1707735113066,-2405.45,0.00025967,2]
[313819061,1707735113075,-500.0,0.00025967,2]
[313819062,1707735113084,-4101.5,0.00025967,2]
[313819063,1707735113094,-500.0,0.00025967,2]
[313819064,1707735113104,-20031.68,0.00025967,2]
[313819065,1707735113113,-500.0,0.00025967,2]
[313819066,1707735113122,-5982.13,0.00025967,2]
[313819067,1707735113131,-2670.94,0.00025967,2]
[313819068,1707735113140,-2470.01,0.00025967,2]
[313819069,1707735113149,-1147.39,0.00025967,2]
[313819070,1707735113159,-678.75,0.00025967,2]
[313819071,1707735113169,-500.0,0.00025967,2]
[313819072,1707735113178,-500.0,0.00025967,2]
[313819073,1707735113187,-512.26,0.00025967,2]
[313819074,1707735113196,-689.37,0.00025967,2]
[313819075,1707735113206,-528.76,0.00025967,2]
[313819076,1707735113216,-710.54,0.00025967,2]
[313819077,1707735113225,-500.0,0.00025967,2]
[313819078,1707735113235,-7132.65,0.00025967,2]
[313819079,1707735113244,-1207.55,0.00025967,2]
[313819080,1707735113253,-1690.53,0.00025967,2]
[313819081,1707735113263,-767.62,0.00025967,2]
[313819082,1707735113273,-768.44,0.00025967,2]
[313819083,1707735113282,-2328.9,0.00025967,2]
[313819084,1707735113292,-6830.87,0.00025967,2]
[313819085,1707735113302,-581.45,0.00025967,2]
[313819086,1707735113311,-550.33,0.00025967,2]
[313819087,1707735113321,-2234.17,0.00025967,2]
[313819088,1707735113331,-1353.61,0.00025967,2]
[313819089,1707735113340,-589.69,0.00025967,2]
[313819090,1707735113349,-1145.24,0.00025967,2]
[313819091,1707735113359,-1751.56,0.00025967,2]
[313819092,1707735113368,-996.07,0.00025967,2]
[313819093,1707735113377,-727.06,0.00025967,2]
[313819094,1707735113387,-389.35679389,0.00025967,2]
[313819095,1707735113397,-1151.45,0.00025967,2]
[313819096,1707735113406,-500.0,0.00025967,2]
[313819097,1707735113416,-1447.65,0.00025967,2]
[313819098,1707735113425,-500.0,0.00025967,2]
[313819099,1707735113435,-2805.58,0.00025967,2]
[313819100,1707735113444,-1232.65,0.00025967,2]
[313819101,1707735113454,-500.0,0.00025967,2]
[313819102,1707735113467,-500.0,0.00025967,2]
[313819103,1707735113477,-500.0,0.00025967,2]
[313819104,1707735113486,-843.89,0.00025967,2]
[313819105,1707735113496,-1190.91,0.00025967,2]
[313819106,1707735113506,-500.0,0.00025967,2]
[313819107,1707735113565,-899.12,0.00025967,2]
[313819108,1707735113575,-9748.41,0.00025967,2]
[313819109,1707735113584,-2215.09,0.00025967,2]
[313819110,1707735113593,-620.29,0.00025967,2]
[313819111,1707735113602,-500.0,0.00025967,2]
[313819112,1707735113611,-600.94,0.00025967,2]
[313819113,1707735113620,-879.84,0.00025967,2]
[313819114,1707735113629,-572.36,0.00025967,2]
[313819115,1707735113638,-500.0,0.00025967,2]
[313819116,1707735113648,-2783.52,0.00025967,2]
[313819117,1707735113658,-690.15,0.00025967,2]
[313819118,1707735113667,-910.37,0.00025967,2]
[313819119,1707735113677,-960.48,0.00025967,2]
[313819120,1707735113686,-588.11,0.00025967,2]
[313819121,1707735113695,-767.89,0.00025967,2]
[313819122,1707735113705,-500.0,0.00025967,2]
[313819123,1707735113715,-500.0,0.00025967,2]
[313819124,1707735113724,-788.8,0.00025967,2]
[313819125,1707735113734,-2092.79,0.00025967,2]
[313819126,1707735113744,-921.9,0.00025967,2]
[313819127,1707735113753,-8672.72,0.00025967,2]
[313819128,1707735113763,-1654.9,0.00025967,2]
[313819129,1707735113772,-2812.9,0.00025967,2]
[313819130,1707735113781,-500.0,0.00025968,2]
[313819131,1707735113790,-500.0,0.00025968,2]
[313819132,1707735113799,-500.0,0.00025968,2]
[313819133,1707735113808,-500.0,0.00025968,2]
[313819134,1707735113817,-500.0,0.00025968,2]
[313819135,1707735113826,-500.0,0.00025968,2]
[313819136,1707735113835,-500.0,0.00025968,2]
[313819137,1707735113845,-564.35,0.00025968,2]
[313819138,1707735113854,-939.38,0.00025968,2]
[313819139,1707735113864,-500.0,0.00025968,2]
[313819140,1707735113873,-500.0,0.00025968,2]
[313819141,1707735113882,-500.0,0.00025968,2]
[313819142,1707735113891,-615.97,0.00025968,2]
[313819143,1707735113900,-808.34,0.00025968,2]
[313819144,1707735113910,-500.0,0.00025968,2]
[313819145,1707735113920,-500.0,0.00025968,2]
[313819146,1707735113929,-500.0,0.00025968,2]
[313819147,1707735113939,-495.10511826,0.00025968,2]
[313819148,1707735113948,-500.0,0.00025968,2]
[313819149,1707735113957,-509.14,0.00025968,2]
[313819150,1707735113966,-783.3,0.00025968,2]
[313819151,1707735113975,-707.32,0.00025968,2]
[313819152,1707735113986,-500.0,0.00025968,2]
[313819153,1707735113995,-500.0,0.00025968,2]
[313819154,1707735114004,-618.89,0.00025968,2]
[313819155,1707735114013,-500.0,0.00025968,2]
[313819156,1707735114023,-500.0,0.00025968,2]
[313819157,1707735114032,-500.0,0.00025968,2]
[313819158,1707735114041,-391.77,0.00025968,2]
[313819159,1707735114050,-2711.38,0.00025968,2]
[313819160,1707735114060,-500.0,0.00025968,2]
[313819161,1707735114069,-1469.44,0.00025968,2]
[313819162,1707735114078,-681.86,0.00025968,2]
[313819163,1707735114087,-281.89009113,0.00025968,2]
[313819164,1707735114096,-537.01,0.00025968,2]
[313819165,1707735114106,-2252.02,0.00025968,2]
[313819166,1707735114115,-688.56,0.00025968,2]
[313819167,1707735114124,-500.0,0.00025968,2]
[313819168,1707735114134,-500.0,0.00025968,2]
[313819169,1707735114142,-500.0,0.00025968,2]
[313819170,1707735114152,-1838.36,0.00025968,2]
[313819171,1707735114162,-558.33778637,0.00025968,2]
[313819172,1707735114171,-500.0,0.00025968,2]
[313819173,1707735114180,-500.0,0.00025968,2]
[313819174,1707735114189,-527.87520255,0.00025968,2]
[313819175,1707735114198,-653.74,0.00025968,2]
[313819176,1707735114207,-500.0,0.00025968,2]
[313819177,1707735114217,-500.0,0.00025968,2]
[313819178,1707735114226,-500.0,0.00025968,2]
[313819179,1707735114235,-4603.61,0.00025968,2]
[313819180,1707735114245,-500.0,0.00025968,2]
[313819181,1707735114254,-939.6,0.00025968,2]
[313819182,1707735114263,-911.93,0.00025968,2]
[313819183,1707735114272,-500.0,0.00025968,2]
[313819184,1707735114280,-793.68,0.00025968,2]
[313819185,1707735114289,-659.79,0.00025968,2]
[313819186,1707735114298,-1543.06,0.00025968,2]
[313819187,1707735114307,-251.02,0.00025968,2]
[313819188,1707735114317,-2800.78,0.00025968,2]
[313819189,1707735114326,-500.0,0.00025968,2]
[313819190,1707735114336,-607.76,0.00025968,2]
[313819191,1707735114346,-703.75,0.00025968,2]
[313819192,1707735114356,-612.44,0.00025968,2]
[313819193,1707735114365,-500.0,0.00025968,2]
[313819194,1707735114375,-540.31,0.00025968,2]
[313819195,1707735114384,-597.88,0.00025968,2]
[313819196,1707735114393,-500.0,0.00025968,2]
[313819197,1707735114403,-703.76,0.00025968,2]
[313819198,1707735114413,-500.0,0.00025968,2]
[313819199,1707735114422,-605.58,0.00025968,2]
[313819200,1707735114431,-990.95,0.00025968,2]
[313819201,1707735114440,-556.38,0.00025968,2]
[313819202,1707735114449,-713.73,0.00025968,2]
[313819203,1707735114461,-500.0,0.00025968,2]
[313819204,1707735114470,-500.0,0.00025968,2]
[313819205,1707735114479,-762.09,0.00025968,2]
[313819206,1707735114488,-500.0,0.00025968,2]
[313819207,1707735114497,-1678.01,0.00025968,2]
[313819208,1707735114506,-731.06,0.00025968,2]
[313819209,1707735114515,-612.73,0.00025968,2]
[313819210,1707735114525,-2458.08,0.00025968,2]
[313819211,1707735114534,-500.0,0.00025969,2]
[313819212,1707735114543,-167.4,0.00026115,2]
[313819213,1707735114552,-165.05,0.00026137,2]
[313819214,1707735114561,-500.0,0.0002624,2]
[313819215,1707735114570,-579.33,0.0002624,2]
[313819216,1707735114579,-2304.48,0.0002624,2]
[313819217,1707735114587,-500.0,0.0002624,2]
[313819218,1707735114596,-6366.64,0.0002624,2]
[313819219,1707735114605,-2086.18,0.0002624,2]
[313819220,1707735114614,-862.58,0.0002624,2]
[313819221,1707735114624,-1948.16,0.0002624,2]
[313819222,1707735114633,-673.35,0.0002624,2]
[313819223,1707735114642,-500.0,0.0002624,2]
[313819224,1707735114651,-526.84,0.0002624,2]
[313819225,1707735114659,-1740.03,0.0002624,2]
[313819226,1707735114669,-973.64,0.0002624,2]
[313819227,1707735114677,-6745.22,0.0002624,2]
[313819228,1707735114686,-509.25,0.0002624,2]
[313819229,1707735114696,-500.0,0.0002624,2]
[313819230,1707735114705,-500.0,0.0002624,2]
[313819231,1707735114713,-505.12,0.0002624,2]
[313819232,1707735114722,-500.0,0.0002624,2]
[313819233,1707735114732,-1092.67,0.0002624,2]